fUSD/lending_fUSD_20250115
["ID","MTS","AMOUNT","RATE_DAILY","PERIOD"]
[349044859,1736949057192,-529.96,0.00033972,7]
[349044860,1736949057202,-356.11,0.00033972,7]
[349044861,1736949057211,-500.0,0.00033972,7]
[349044862,1736949057221,-500.0,0.00033972,7]
[349044863,1736949057231,-227.32,0.00033972,7]
[349044864,1736949057240,-500.0,0.00033972,7]
[349044865,1736949057254,-500.0,0.00033972,7]
[349044866,1736949057264,-500.0,0.00033972,7]
[349044867,1736949057276,-500.0,0.00033972,7]
[349044868,1736949057285,-500.0,0.00033972,7]
[349044869,1736949057294,-507.27,0.00033972,7]
[349044870,1736949057303,-500.0,0.00033972,7]
[349044871,1736949057314,-511.83,0.00033972,7]
[349044872,1736949057323,-500.0,0.00033972,7]
[349044873,1736949057332,-500.0,0.00033972,7]
[349044874,1736949057341,-500.0,0.00033972,7]
[349044875,1736949057351,-587.14,0.00033972,7]
[349044876,1736949057361,-500.0,0.00033972,7]
[349044877,1736949057371,-500.0,0.00033972,7]
[349044878,1736949057381,-500.0,0.00033972,7]
[349044879,1736949057391,-500.0,0.00033972,7]
[349044880,1736949057401,-500.0,0.00033972,7]
[349044881,1736949057411,-500.0,0.00033972,7]
[349044882,1736949057422,-500.0,0.00033972,7]
[349044883,1736949057432,-500.0,0.00033972,7]
[349044884,1736949057442,-500.0,0.00033972,7]
[349044885,1736949057453,-500.0,0.00033972,7]
[349044886,1736949057463,-500.0,0.00033972,7]
[349044887,1736949057472,-500.0,0.00033972,7]
[349044888,1736949057482,-500.0,0.00033972,7]
[349044889,1736949057492,-500.0,0.00033972,7]
[349044890,1736949057502,-411.28,0.00033972,7]
[349044891,1736949057511,-609.52,0.00033972,7]
[349044892,1736949057521,-500.0,0.00033972,7]
[349044893,1736949057533,-500.0,0.00033972,7]
[349044894,1736949057542,-500.0,0.00033972,7]
[349044895,1736949057552,-500.0,0.00033972,7]
[349044896,1736949057563,-284.1364083,0.00033972,7]
[349044897,1736949057573,-500.0,0.00033972,7]
[349044898,1736949057583,-500.0,0.00033972,7]
[349044899,1736949057594,-538.64,0.00033972,7]
[349044900,1736949057604,-479.77598673,0.00033972,7]
[349044901,1736949057613,-500.0,0.00033972,7]
[349044902,1736949057622,-500.0,0.00033972,7]
[349044903,1736949057631,-500.0,0.00033972,7]
[349044904,1736949057640,-500.0,0.00033972,7]
[349044905,1736949057649,-500.0,0.00033972,7]
[349044906,1736949057659,-500.0,0.00033972,7]
[349044907,1736949057669,-500.0,0.00033972,7]
[349044908,1736949057680,-489.58636029,0.00033972,7]
[349044909,1736949057690,-500.0,0.00033972,7]
[349044910,1736949057700,-500.0,0.00033972,7]
[349044911,1736949057710,-500.0,0.00033972,7]
[349044912,1736949057719,-541.04,0.00033972,7]
[349044913,1736949057728,-500.0,0.00033972,7]
[349044914,1736949057738,-647.15,0.00033972,7]
[349044915,1736949057748,-500.0,0.00033972,7]
[349044916,1736949057758,-500.0,0.00033972,7]
[349044917,1736949057769,-500.0,0.00033972,7]
[349044918,1736949057781,-500.0,0.00033972,7]
[349044919,1736949057791,-500.0,0.00033972,7]
[349044920,1736949057802,-500.0,0.00033972,2]
[349044921,1736949057812,-227.84,0.00033972,7]
[349044922,1736949057822,-500.0,0.00033972,7]
[349044923,1736949057831,-500.0,0.00033972,7]
[349044924,1736949057842,-500.0,0.00033972,7]
[349044925,1736949057852,-500.0,0.00033972,7]
[349044926,1736949057861,-500.0,0.00033972,7]
[349044927,1736949057870,-500.0,0.00033972,7]
[349044928,1736949057879,-500.0,0.00033972,7]
[349044929,1736949057888,-500.0,0.00033972,7]
[349044930,1736949057897,-500.0,0.00033972,7]
[349044931,1736949057908,-500.0,0.00033972,7]
[349044932,1736949057918,-500.0,0.00033972,7]
[349044933,1736949057929,-500.0,0.00033972,7]
[349044934,1736949057939,-500.0,0.00033972,7]
[349044935,1736949057949,-418.416798,0.00033972,7]
[349044936,1736949057959,-500.0,0.00033972,7]
[349044937,1736949057968,-500.0,0.00033972,2]
[349044938,1736949057978,-500.0,0.00033972,7]
[349044939,1736949057988,-500.0,0.00033972,7]
[349044940,1736949057998,-500.0,0.00033972,7]
[349044941,1736949058009,-500.0,0.00033972,7]
[349044942,1736949058019,-500.0,0.00033972,7]
[349044943,1736949058032,-500.0,0.00033972,7]
[349044944,1736949058043,-500.0,0.00033972,7]
[349044945,1736949058054,-1573.0,0.00034218,120]
[349044946,1736949058065,-500.0,0.00034246,7]
[349044947,1736949058075,-310.44,0.00034246,7]
[349044948,1736949058086,-500.0,0.00034246,7]
[349044949,1736949058095,-500.0,0.00034246,7]
[349044950,1736949058105,-500.0,0.00034246,7]
[349044951,1736949058115,-500.0,0.00034246,7]
[349044952,1736949058125,-500.0,0.00034246,7]
[349044953,1736949058136,-500.0,0.00034246,7]
[349044954,1736949058146,-500.0,0.00034246,7]
[349044955,1736949058156,-500.0,0.00034246,7]
[349044956,1736949058166,-500.0,0.00034246,7]
[349044957,1736949058176,-543.6,0.00034246,7]
[349044958,1736949058186,-500.0,0.00034246,7]
[349044959,1736949058196,-873.59,0.00034246,7]
[349044960,1736949058207,-500.0,0.00034246,7]
[349044961,1736949058217,-500.0,0.00034246,7]
[349044962,1736949058227,-500.0,0.00034246,7]
[349044963,1736949058237,-500.0,0.00034246,2]
[349044964,1736949058251,-500.0,0.00034246,7]
[349044965,1736949058261,-500.0,0.00034246,7]
[349044966,1736949058271,-500.0,0.00034246,7]
[349044967,1736949058283,-500.0,0.00034246,7]
[349044968,1736949058293,-500.0,0.00034246,7]
[349044969,1736949058303,-623.6,0.00034246,7]
[349044970,1736949058313,-500.0,0.00034246,7]
[349044971,1736949058323,-500.0,0.00034246,7]
[349044972,1736949058335,-500.0,0.00034246,7]
[349044973,1736949058345,-500.0,0.00034246,7]
[349044974,1736949058354,-622.6,0.00034246,7]
[349044975,1736949058365,-500.0,0.00034246,7]
[349044976,1736949058375,-500.0,0.00034246,7]
[349044977,1736949058384,-500.0,0.00034246,7]
[349044978,1736949058394,-500.0,0.00034246,7]
[349044979,1736949058404,-614.31,0.00034246,7]
[349044980,1736949058414,-500.0,0.00034246,7]
[349044981,1736949058424,-500.0,0.00034246,7]
[349044982,1736949058435,-483.75471492,0.00034246,7]
[349044983,1736949058444,-258.72,0.00034246,7]
[349044984,1736949058454,-500.0,0.00034246,7]
[349044985,1736949058463,-500.0,0.00034246,7]
[349044986,1736949058473,-378.38,0.00034246,7]
[349044987,1736949058483,-500.0,0.00034246,7]
[349044988,1736949058494,-500.0,0.00034246,7]
[349044989,1736949058504,-296.81,0.00034246,7]
[349044990,1736949058514,-500.0,0.00034246,7]
[349044991,1736949058525,-500.0,0.00034246,7]
[349044992,1736949058535,-500.77,0.00034246,7]
[349044993,1736949058546,-500.0,0.00034246,7]
[349044994,1736949058556,-500.0,0.00034246,7]
[349044995,1736949058565,-500.0,0.00034246,7]
[349044996,1736949058574,-500.0,0.00034246,7]
[349044997,1736949058584,-587.14,0.00034246,7]
[349044998,1736949058593,-500.0,0.00034246,7]
[349044999,1736949058603,-500.0,0.00034246,7]
[349045000,1736949058614,-500.0,0.00034246,7]
[349045001,1736949058624,-500.0,0.00034246,7]
[349045002,1736949058633,-224.59,0.00034246,7]
[349045003,1736949058642,-500.0,0.00034246,7]
[349045004,1736949058652,-500.0,0.00034246,7]
[349045005,1736949058663,-500.0,0.00034246,7]
[349045006,1736949058673,-500.0,0.00034246,7]
[349045007,1736949058683,-500.0,0.00034246,7]
[349045008,1736949058693,-500.0,0.00034246,7]
[349045009,1736949058703,-500.0,0.00034246,7]
[349045010,1736949058712,-500.0,0.00034246,7]
[349045011,1736949058723,-500.0,0.00034246,7]
[349045012,1736949058733,-609.52,0.00034246,7]
[349045013,1736949058743,-500.0,0.00034246,7]
[349045014,1736949058754,-538.64,0.00034246,7]
[349045015,1736949058764,-500.0,0.00034246,7]
[349045016,1736949058776,-500.0,0.00034246,7]
[349045017,1736949058787,-500.0,0.00034246,7]
[349045018,1736949058930,-500.0,0.00034246,7]
[349045019,1736949058941,-500.0,0.00034246,7]
[349045020,1736949058951,-500.0,0.00034246,7]
[349045021,1736949058961,-231.63,0.00034246,7]
[349045022,1736949058971,-355.28362664,0.00034246,7]
[349045023,1736949058981,-500.0,0.00034246,7]
[349045024,1736949058992,-647.15,0.00034246,7]
[349045025,1736949059003,-500.0,0.00034246,7]
[349045026,1736949059013,-500.0,0.00034246,7]
[349045027,1736949059023,-500.0,0.00034246,7]
[349045028,1736949059036,-500.0,0.00034246,7]
[349045029,1736949059045,-316.63917306,0.00034246,7]
[349045030,1736949059055,-500.0,0.00034246,2]
[349045031,1736949059064,-500.0,0.00034246,7]
[349045032,1736949059073,-500.0,0.00034246,7]
[349045033,1736949059084,-500.0,0.00034246,7]
[349045034,1736949059095,-500.0,0.00034246,7]
[349045035,1736949059105,-500.0,0.00034246,7]
[349045036,1736949059114,-500.0,0.00034246,7]
[349045037,1736949059124,-500.0,0.00034246,7]
[349045038,1736949059134,-500.0,0.00034246,7]
[349045039,1736949059144,-500.0,0.00034246,7]
[349045040,1736949059154,-500.0,0.00034246,7]
[349045041,1736949059163,-500.0,0.00034246,2]
[349045042,1736949059173,-500.0,0.00034246,7]
[349045043,1736949059183,-500.0,0.00034246,7]
[349045044,1736949059192,-471.81,0.00034246,7]
[349045045,1736949059202,-500.0,0.00034246,7]
[349045046,1736949059212,-500.0,0.00034246,7]
[349045047,1736949059222,-500.0,0.00034246,7]
[349045048,1736949059234,-500.0,0.00034246,7]
[349045049,1736949059248,-227.4,0.00034247,120]
[349045050,1736949059258,-500.0,0.0003452,7]
[349045051,1736949059267,-446.33,0.0003452,7]
[349045052,1736949059279,-500.0,0.0003452,7]
[349045053,1736949059290,-500.0,0.0003452,7]
[349045054,1736949059300,-500.0,0.0003452,7]
[349045055,1736949059310,-500.0,0.0003452,7]
[349045056,1736949059319,-873.59,0.0003452,7]
[349045057,1736949059329,-500.0,0.0003452,7]
[349045058,1736949059338,-598.41019567,0.0003452,7]
[349045059,1736949059348,-500.0,0.0003452,7]
[349045060,1736949059358,-500.0,0.0003452,2]
[349045061,1736949059369,-500.0,0.0003452,7]
[349045062,1736949059379,-500.0,0.0003452,7]
[349045063,1736949059389,-500.0,0.0003452,7]
[349045064,1736949059399,-500.0,0.0003452,7]
[349045065,1736949059409,-204.01549535,0.0003452,7]
[349045066,1736949059419,-500.0,0.0003452,7]
[349045067,1736949059430,-199.0,0.0003452,7]
[349045068,1736949059440,-500.0,0.0003452,7]
[349045069,1736949059450,-500.0,0.0003452,7]
[349045070,1736949059460,-500.0,0.0003452,7]
[349045071,1736949059470,-563.2,0.0003452,7]
[349045072,1736949059481,-614.31,0.0003452,7]
[349045073,1736949059490,-328.9,0.0003452,7]
[349045074,1736949059500,-270.72,0.0003452,7]
[349045075,1736949059509,-500.0,0.0003452,7]
[349045076,1736949059519,-500.0,0.0003452,7]
[349045077,1736949059531,-500.0,0.0003452,7]
[349045078,1736949059540,-500.0,0.0003452,7]
[349045079,1736949059550,-500.0,0.0003452,7]
[349045080,1736949059560,-500.0,0.0003452,7]
[349045081,1736949059571,-587.14,0.0003452,7]
[349045082,1736949059581,-500.0,0.0003452,7]
[349045083,1736949059591,-500.0,0.0003452,7]
[349045084,1736949059600,-500.0,0.0003452,7]
[349045085,1736949059609,-500.0,0.0003452,7]
[349045086,1736949059618,-500.0,0.0003452,7]
[349045087,1736949059628,-500.0,0.0003452,7]
[349045088,1736949059638,-500.0,0.0003452,7]
[349045089,1736949059648,-500.0,0.0003452,7]
[349045090,1736949059658,-500.0,0.0003452,7]
[349045091,1736949059667,-500.0,0.0003452,7]
[349045092,1736949059677,-500.0,0.0003452,7]
[349045093,1736949059686,-609.52,0.0003452,7]
[349045094,1736949059696,-538.64,0.0003452,7]
[349045095,1736949059706,-500.0,0.0003452,7]
[349045096,1736949059716,-500.0,0.0003452,7]
[349045097,1736949059727,-500.0,0.0003452,7]
[349045098,1736949059736,-500.0,0.0003452,7]
[349045099,1736949059747,-500.0,0.0003452,7]
[349045100,1736949059757,-647.15,0.0003452,7]
[349045101,1736949059768,-500.0,0.0003452,7]
[349045102,1736949059781,-500.0,0.0003452,7]
[349045103,1736949059791,-500.0,0.0003452,7]
[349045104,1736949059801,-500.0,0.0003452,2]
[349045105,1736949059811,-500.0,0.0003452,7]
[349045106,1736949059821,-500.0,0.0003452,7]
[349045107,1736949059831,-500.0,0.0003452,7]
[349045108,1736949059842,-500.0,0.0003452,7]
[349045109,1736949059851,-500.0,0.0003452,7]
[349045110,1736949059861,-500.0,0.0003452,7]
[349045111,1736949059871,-500.0,0.0003452,7]
[349045112,1736949059882,-500.0,0.0003452,7]
[349045113,1736949059892,-500.0,0.0003452,7]
[349045114,1736949059902,-225.79,0.0003452,7]
[349045115,1736949059912,-553.6193312,0.0003452,2]
[349045116,1736949059922,-500.0,0.0003452,7]
[349045117,1736949059932,-500.0,0.0003452,7]
[349045118,1736949059942,-500.0,0.0003452,7]
[349045119,1736949059952,-500.0,0.0003452,7]
[349045120,1736949059962,-500.0,0.0003452,7]
[349045121,1736949059972,-323.26879747,0.0003452,7]
[349045122,1736949059982,-150.0,0.00034548,10]
[349045123,1736949059991,-2966.89473381,0.00034725,2]
[349045124,1736949060001,-352.64,0.00034794,7]
[349045125,1736949060010,-500.0,0.00034794,7]
[349045126,1736949060020,-500.0,0.00034794,7]
[349045127,1736949060033,-500.0,0.00034794,7]
[349045128,1736949060043,-873.59,0.00034794,7]
[349045129,1736949060054,-500.0,0.00034794,7]
[349045130,1736949060065,-500.0,0.00034794,7]
[349045131,1736949060075,-500.0,0.00034794,7]
[349045132,1736949060085,-444.88,0.00034794,7]
[349045133,1736949060094,-500.0,0.00034794,7]
[349045134,1736949060104,-500.0,0.00034794,7]
[349045135,1736949060114,-500.0,0.00034794,7]
[349045136,1736949060123,-500.0,0.00034794,7]
[349045137,1736949060132,-500.0,0.00034794,7]
[349045138,1736949060142,-614.31,0.00034794,7]
[349045139,1736949060151,-500.0,0.00034794,7]
[349045140,1736949060161,-500.0,0.00034794,7]
[349045141,1736949060171,-500.0,0.00034794,7]
[349045142,1736949060180,-500.0,0.00034794,7]
[349045143,1736949060190,-500.0,0.00034794,7]
[349045144,1736949060200,-587.14,0.00034794,7]
[349045145,1736949060210,-554.16,0.00034794,7]
[349045146,1736949060220,-500.0,0.00034794,7]
[349045147,1736949060230,-582.7,0.00034794,7]
[349045148,1736949060241,-500.0,0.00034794,7]
[349045149,1736949060251,-500.0,0.00034794,7]
[349045150,1736949060261,-500.0,0.00034794,7]
[349045151,1736949060271,-500.0,0.00034794,7]
[349045152,1736949060286,-500.0,0.00034794,7]
[349045153,1736949060296,-609.52,0.00034794,7]
[349045154,1736949060305,-538.64,0.00034794,7]
[349045155,1736949060315,-500.0,0.00034794,7]
[349045156,1736949060327,-500.0,0.00034794,7]
[349045157,1736949060338,-500.0,0.00034794,7]
[349045158,1736949060348,-500.0,0.00034794,7]
[349045159,1736949060357,-500.0,0.00034794,7]
[349045160,1736949060368,-647.15,0.00034794,7]
[349045161,1736949060377,-500.0,0.00034794,7]
[349045162,1736949060387,-500.0,0.00034794,7]
[349045163,1736949060397,-500.0,0.00034794,7]
[349045164,1736949060406,-523.54,0.00034794,2]
[349045165,1736949060416,-500.0,0.00034794,7]
[349045166,1736949060425,-500.0,0.00034794,7]
[349045167,1736949060435,-500.0,0.00034794,7]
[349045168,1736949060445,-218.95,0.00034794,7]
[349045169,1736949060454,-500.0,0.00034794,7]
[349045170,1736949060464,-500.0,0.00034794,7]
[349045171,1736949060474,-407.45,0.00034794,7]
[349045172,1736949060483,-500.0,0.00034794,7]
[349045173,1736949060494,-500.0,0.00034794,7]
[349045174,1736949060504,-500.0,0.00034794,7]
[349045175,1736949060514,-500.0,0.00034794,7]
[349045176,1736949060527,-500.0,0.00034794,7]
[349045177,1736949060538,-325.36,0.00034794,7]
[349045178,1736949060548,-151.0,0.00034932,120]
[349045179,1736949060558,-1193.44782897,0.00035,120]
[349045180,1736949060568,-7185.23775548,0.00035,30]
[349045181,1736949060577,-500.0,0.00035068,7]
[349045182,1736949060588,-500.0,0.00035068,7]
[349045183,1736949060599,-500.0,0.00035068,7]
[349045184,1736949060609,-873.59,0.00035068,7]
[349045185,1736949060619,-359.5,0.00035068,7]
[349045186,1736949060629,-530.06,0.00035068,7]
[349045187,1736949060638,-372.75,0.00035068,7]
[349045188,1736949060648,-471.05,0.00035068,7]
[349045189,1736949060658,-320.9,0.00035068,7]
[349045190,1736949060667,-464.48505028,0.00035068,7]
[349045191,1736949060676,-614.31,0.00035068,7]
[349045192,1736949060685,-500.0,0.00035068,7]
[349045193,1736949060694,-500.0,0.00035068,7]
[349045194,1736949060704,-500.0,0.00035068,7]
[349045195,1736949060714,-500.0,0.00035068,7]
[349045196,1736949060724,-500.0,0.00035068,7]
[349045197,1736949060735,-587.14,0.00035068,7]
[349045198,1736949060745,-500.0,0.00035068,7]
[349045199,1736949060755,-500.0,0.00035068,7]
[349045200,1736949060764,-260.01266028,0.00035068,7]
[349045201,1736949060778,-500.0,0.00035068,7]
[349045202,1736949060788,-500.0,0.00035068,7]
[349045203,1736949060798,-500.0,0.00035068,7]
[349045204,1736949060815,-609.52,0.00035068,7]
[349045205,1736949060825,-538.64,0.00035068,7]
[349045206,1736949060834,-500.0,0.00035068,7]
[349045207,1736949060844,-500.0,0.00035068,7]
[349045208,1736949060854,-500.0,0.00035068,7]
[349045209,1736949060864,-500.0,0.00035068,7]
[349045210,1736949060874,-500.0,0.00035068,7]
[349045211,1736949060885,-647.15,0.00035068,7]
[349045212,1736949060895,-500.0,0.00035068,7]
[349045213,1736949060904,-500.0,0.00035068,7]
[349045214,1736949060914,-500.0,0.00035068,7]
[349045215,1736949060923,-500.0,0.00035068,7]
[349045216,1736949060933,-500.0,0.00035068,7]
[349045217,1736949060943,-500.0,0.00035068,7]
[349045218,1736949060952,-500.0,0.00035068,7]
[349045219,1736949060962,-175.48,0.00035068,7]
[349045220,1736949060972,-500.0,0.00035068,7]
[349045221,1736949060983,-274.25,0.00035068,7]
[349045222,1736949060994,-500.0,0.00035068,7]
[349045223,1736949061004,-500.0,0.00035068,7]
[349045224,1736949061014,-227.4,0.00035096,120]
[349045225,1736949061024,-3000.0,0.000351,2]
[349045226,1736949061037,-1431.25117755,0.00035176,2]
[349045227,1736949061046,-500.0,0.00035342,7]
[349045228,1736949061056,-500.0,0.00035342,7]
[349045229,1736949061066,-500.0,0.00035342,7]
[349045230,1736949061076,-873.59,0.00035342,7]
[349045231,1736949061086,-614.31,0.00035342,7]
[349045232,1736949061095,-251.96,0.00035342,7]
[349045233,1736949061105,-500.0,0.00035342,7]
[349045234,1736949061115,-500.0,0.00035342,7]
[349045235,1736949061124,-340.6,0.00035342,7]
[349045236,1736949061134,-500.0,0.00035342,7]
[349045237,1736949061143,-587.14,0.00035342,7]
[349045238,1736949061153,-500.0,0.00035342,7]
[349045239,1736949061163,-500.0,0.00035342,7]
[349045240,1736949061172,-572.68,0.00035342,7]
[349045241,1736949061182,-351.85,0.00035342,7]
[349045242,1736949061192,-500.0,0.00035342,7]
[349045243,1736949061202,-609.52,0.00035342,7]
[349045244,1736949061212,-538.64,0.00035342,7]
[349045245,1736949061221,-500.0,0.00035342,7]
[349045246,1736949061231,-240.32,0.00035342,7]
[349045247,1736949061240,-500.0,0.00035342,7]
[349045248,1736949061253,-500.0,0.00035342,7]
[349045249,1736949061263,-500.0,0.00035342,7]
[349045250,1736949061272,-647.15,0.00035342,7]
[349045251,1736949061288,-500.0,0.00035342,7]
[349045252,1736949061298,-500.0,0.00035342,7]
[349045253,1736949061308,-500.0,0.00035342,7]
[349045254,1736949061318,-277.59,0.00035342,7]
[349045255,1736949061327,-607.76,0.00035342,7]
[349045256,1736949061337,-568.87,0.00035342,7]
[349045257,1736949061346,-500.0,0.00035342,7]
[349045258,1736949061356,-500.0,0.00035342,7]
[349045259,1736949061366,-500.0,0.00035342,7]
[349045260,1736949061375,-500.0,0.00035342,7]
[349045261,1736949061385,-150.93,0.00035507,2]
[349045262,1736949061395,-500.0,0.00035616,7]
[349045263,1736949061406,-500.0,0.00035616,7]
[349045264,1736949061416,-487.76,0.00035616,7]
[349045265,1736949061455,-873.59,0.00035616,7]
[349045266,1736949061466,-614.31,0.00035616,7]
[349045267,1736949061475,-500.0,0.00035616,7]
[349045268,1736949061485,-500.0,0.00035616,7]
[349045269,1736949061495,-500.0,0.00035616,7]
[349045270,1736949061505,-587.14,0.00035616,7]
[349045271,1736949061514,-500.0,0.00035616,7]
[349045272,1736949061525,-500.0,0.00035616,7]
[349045273,1736949061538,-322.98,0.00035616,7]
[349045274,1736949061548,-609.52,0.00035616,7]
[349045275,1736949061558,-538.64,0.00035616,7]
[349045276,1736949061568,-500.0,0.00035616,7]
[349045277,1736949061578,-500.0,0.00035616,7]
[349045278,1736949061588,-500.0,0.00035616,7]
[349045279,1736949061598,-500.0,0.00035616,7]
[349045280,1736949061608,-647.15,0.00035616,7]
[349045281,1736949061617,-500.0,0.00035616,7]
[349045282,1736949061627,-372.85,0.00035616,7]
[349045283,1736949061637,-500.0,0.00035616,7]
[349045284,1736949061647,-500.0,0.00035616,7]
[349045285,1736949061656,-500.0,0.00035616,7]
[349045286,1736949061666,-500.0,0.00035616,7]
[349045287,1736949061676,-500.0,0.00035616,7]
[349045288,1736949061687,-200.0,0.00035616,60]
[349045289,1736949061696,-500.0,0.00035828,120]
[349045290,1736949061706,-500.0,0.0003589,60]
[349045291,1736949061716,-500.0,0.0003589,60]
[349045292,1736949061726,-500.0,0.0003589,60]
[349045293,1736949061735,-500.0,0.0003589,7]
[349045294,1736949061745,-525.2,0.0003589,7]
[349045295,1736949061754,-873.59,0.0003589,7]
[349045296,1736949061764,-614.31,0.0003589,7]
[349045297,1736949061774,-500.0,0.0003589,7]
[349045298,1736949061788,-500.0,0.0003589,7]
[349045299,1736949061798,-500.0,0.0003589,7]
[349045300,1736949061807,-587.14,0.0003589,7]
[349045301,1736949061817,-500.0,0.0003589,7]
[349045302,1736949061827,-244.27935554,0.0003589,7]
[349045303,1736949061837,-609.52,0.0003589,7]
[349045304,1736949061846,-538.64,0.0003589,7]
[349045305,1736949061855,-500.0,0.0003589,7]
[349045306,1736949061865,-500.0,0.0003589,7]
[349045307,1736949061875,-500.0,0.0003589,7]
[349045308,1736949061885,-500.0,0.0003589,7]
[349045309,1736949061895,-647.15,0.0003589,7]
[349045310,1736949061905,-503.72,0.0003589,7]
[349045311,1736949061916,-500.0,0.0003589,7]
[349045312,1736949061925,-500.0,0.0003589,7]
[349045313,1736949061935,-500.0,0.0003589,7]
[349045314,1736949061944,-214.71,0.0003589,7]
[349045315,1736949061954,-500.0,0.0003589,7]
[349045316,1736949061963,-151.0,0.00035918,120]
[349045317,1736949061973,-227.4,0.00035945,120]
[349045318,1736949061983,-864.86,0.00036037,2]
[349045319,1736949061993,-500.0,0.00036164,7]
[349045320,1736949062002,-873.59,0.00036164,7]
[349045321,1736949062011,-614.31,0.00036164,7]
[349045322,1736949062021,-500.0,0.00036164,7]
[349045323,1736949062035,-500.0,0.00036164,7]
[349045324,1736949062044,-500.0,0.00036164,7]
[349045325,1736949062054,-587.14,0.00036164,7]
[349045326,1736949062063,-500.0,0.00036164,7]
[349045327,1736949062072,-609.52,0.00036164,7]
[349045328,1736949062081,-538.64,0.00036164,7]
[349045329,1736949062091,-500.0,0.00036164,7]
[349045330,1736949062100,-388.9,0.00036164,7]
[349045331,1736949062109,-500.0,0.00036164,7]
[349045332,1736949062119,-448.18,0.00036164,7]
[349045333,1736949062128,-647.15,0.00036164,7]
[349045334,1736949062138,-500.0,0.00036164,7]
[349045335,1736949062147,-175.35,0.00036164,7]
[349045336,1736949062157,-500.0,0.00036164,7]
[349045337,1736949062167,-500.0,0.00036164,7]
[349045338,1736949062178,-299.22819669,0.00036438,7]
[349045339,1736949062188,-873.59,0.00036438,7]
[349045340,1736949062198,-614.31,0.00036438,7]
[349045341,1736949062207,-500.0,0.00036438,7]
[349045342,1736949062217,-500.0,0.00036438,7]
[349045343,1736949062227,-384.2,0.00036438,7]
[349045344,1736949062237,-587.14,0.00036438,7]
[349045345,1736949062248,-500.0,0.00036438,7]
[349045346,1736949062259,-609.52,0.00036438,7]
[349045347,1736949062268,-538.64,0.00036438,7]
[349045348,1736949062280,-500.0,0.00036438,7]
[349045349,1736949062290,-500.0,0.00036438,7]
[349045350,1736949062299,-647.15,0.00036438,7]
[349045351,1736949062309,-500.0,0.00036438,7]
[349045352,1736949062318,-500.0,0.00036438,7]
[349045353,1736949062328,-500.0,0.00036438,7]
[349045354,1736949062337,-46002.07206498,0.00036567,2]
[349045355,1736949062347,-1431.25117755,0.00036693,2]
[349045356,1736949062357,-873.59,0.00036712,7]
[349045357,1736949062366,-614.31,0.00036712,7]
[349045358,1736949062375,-500.0,0.00036712,7]